Cogmind - Beta 11.1 @@@ ROGUE MODE // 2022.05.08 @ 13:30:43 Player: Okkudo Result: Destroyed by Y-45 Defender with Beam Rifle Performance ------------- Evolutions (1) 500 Regions Visited (2) 400 Robots Destroyed (21) 105 Value Destroyed (485) 485 Prototype IDs (0) 0 Alien Tech Used (0) 0 Bonus (0) 0 TOTAL SCORE: 1490 Bonus ------- None Cogmind --------- Core Integrity 0/400 Matter 276/300 Energy 100/100 System Corruption 0% Temperature Cool (15) Movement Core (350) Ox6 Location -9/Materials Parts ------- > --- POWER (1) -------- (None) > --- PROPULSION (3) --- (None) > --- UTILITY (3) ------ Large Storage Unit > --- WEAPON (2) ------- (None) > --- INVENTORY (15) --- Light Ion Engine Compact Wheel Flight Unit Flight Unit Flight Unit Medium Storage Unit High-capacity Matter Pod (166) Sensor Array Targeting Computer Hardened Light Armor Plating Heavy Assault Rifle Grenade Launcher Datajack Katana Peak State ------------ > --- POWER ------------ Improved Ion Engine > --- PROPULSION ------- Light Treads Light Treads > --- UTILITY ---------- Large Storage Unit Hardened Light Armor Plating > --- WEAPON ----------- Assault Rifle Heavy Assault Rifle > --- INVENTORY -------- Light Ion Engine Compact Wheel Flight Unit Flight Unit Flight Unit Medium Storage Unit High-capacity Matter Pod Sensor Array Targeting Computer Hardened Light Armor Plating Heavy Assault Rifle Grenade Launcher Grenade Launcher Datajack [Rating: 11] Favorites ----------- Power Light Ion Engine Engine Light Ion Engine Propulsion Light Treads Treads Light Treads Utility Large Storage Unit Storage Large Storage Unit Protection Hardened Light Armor Plating Weapon Assault Rifle Ballistic Gun Assault Rifle Launcher Grenade Launcher Build | -11 -10 -9 ------- Run | Scr Mat Mat Slots Evolved 2 | . . 2 Power . | . . . Propulsion 1 | . . 1 Utility 1 | . . 1 Weapon . | . . . Parts Attached 14 | 6 4 4 Power 3 | 1 1 1 Engine 3 | 1 1 1 Core . | . . . Reactor . | . . . Propulsion 3 | 2 . 1 Treads 3 | 2 . 1 Leg . | . . . Wheel . | . . . Hover . | . . . Flight . | . . . Utility 3 | 1 2 . Device . | . . . Storage 2 | 1 1 . Processor . | . . . Hackware . | . . . Protection 1 | . 1 . Artifact . | . . . Weapon 5 | 2 1 2 Energy Gun . | . . . Energy Cannon . | . . . Ballistic Gun 4 | 2 1 1 Ballistic Cannon . | . . . Launcher 1 | . . 1 Special Weapon . | . . . Impact Weapon . | . . . Slashing Weapon . | . . . Piercing Weapon . | . . . Special Melee Weapon . | . . . Unidentified Prototypes . | . . . Parts Lost 9 | . 1 8 Power 2 | . 1 1 Propulsion 3 | . . 3 Utility 1 | . . 1 Weapon 3 | . . 3 Highest Loss Streak 5 | . 1 5 To Critical Strikes . | . . . Average Slot Usage (%) 83 | . 97 56 Engine 11 | . 12 7 Treads 22 | . 28 13 Storage 12 | . 14 11 Protection 11 | . 12 7 Ballistic Gun 23 | . 28 14 Naked Turns . | . . . Heaviest Build 38 | 11 33 38 Greatest Support 40 | 40 40 40 Greatest Overweight (x) 7 | . . 7 Average Overweight (x) . | . . . Largest Inventory Capacity 15 | 8 15 15 Average Capacity 13 | 7 13 15 Most Carried 14 | 3 14 14 Average Carried 10 | 1 9 13 Final Capacity 15 | 8 15 15 Final Carried 14 | 3 13 14 Class Distribution -------------------- 100% | Mutant Dominant Class ---------------- Mutant | -10/Materials Mutant | -9/Materials Resources | -11 -10 -9 ----------- Run | Scr Mat Mat Matter Collected 748 | 266 323 159 Remotely . | . . . Salvage Created 591 | 51 323 217 Parts 46 | 2 23 21 Haulers Intercepted . | . . . Recyclers Shooed 1 | . 1 . Parts Field Recycled . | . . . Retrieved Matter . | . . . Parts Self-Destructed . | . . . Prevented . | . . . Kills | -11 -10 -9 ------- Run | Scr Mat Mat Combat Hostiles Destroyed 16 | . 9 7 Guns 15 | . 9 6 AOE 1 | . . 1 Classes Destroyed 9 | 1 4 4 Worker 1 | . . 1 Recycler 1 | 1 . . Mechanic 1 | . . 1 Operator 1 | . 1 . Watcher 1 | . 1 . Swarmer 7 | . 3 4 Grunt 7 | . 6 1 Duelist 1 | . . 1 Sentry 1 | . . 1 Best Kill Streak 5 | 1 3 5 Combat Bots Only 4 | . 3 4 Max Kills in Single Turn 2 | 1 2 2 Gunslinging 1 | . 1 1 Exploded 1 | . . 1 Melee . | . . . Uniques/NPCs Destroyed . | . . . Combat | -11 -10 -9 -------- Run | Scr Mat Mat Damage Taken 1764 | . 382 1382 Core 491 | . 88 403 Absorbed by Shields . | . . . Core Remaining (%) 82 | 100 64 . Volleys Fired 61 | 2 33 26 Largest 2 | 1 2 2 Hottest 53 | 20 40 53 Shots Fired 118 | 2 66 50 Gun 114 | 2 66 46 Cannon . | . . . Launcher 4 | . . 4 Special . | . . . Kinetic 114 | 2 66 46 Thermal . | . . . Explosive 4 | . . 4 Electromagnetic . | . . . Robot Hit Streak 16 | 2 16 9 Robot Miss Streak 4 | . 2 4 Penetration Max . | . . . Secondary Targets 2 | . 1 1 Max Gunslinging Chain 1 | . 1 1 Shots Hit Robots 90 | 2 50 38 Core Hits 41 | 2 22 17 Critical Kills . | . . . Critical Parts Destroyed 1 | . . 1 Critical Strikes 1 | . . 1 Destroy 1 | . . 1 Melee Attacks . | . . . Impact . | . . . Slashing . | . . . Piercing . | . . . Sneak Attacks . | . . . Combat Hostiles . | . . . Follow-up Attacks . | . . . Damage Inflicted 1220 | 21 509 690 Guns 1071 | 21 509 541 Cannons . | . . . Explosions 148 | . . 148 Melee . | . . . Ramming 1 | . . 1 Kinetic 1071 | 21 509 541 Thermal . | . . . Explosive 148 | . . 148 Electromagnetic . | . . . Impact . | . . . Slashing . | . . . Piercing . | . . . Highest Corruption . | . . . Average Corruption . | . . . Corruption Purged . | . . . Corruption Blocked . | . . . Overload Shots . | . . . Overflow Damage 36 | . . 36 Projectiles . | . . . Explosions 36 | . . 36 Melee . | . . . Knockbacks . | . . . Impact . | . . . Kinetic . | . . . Secondary . | . . . Self-Inflicted Damage 117 | . . 117 Shots 3 | . . 3 Rammed 1 | . . 1 Targets Rammed 1 | . . 1 Kicked . | . . . Crushed . | . . . Highest Temperature 99 | . 42 99 Average Temperature 28 | . 14 49 Received Heat Transfer 717 | . 189 528 Siege Activations . | . . . Robots Corrupted . | . . . Combat Hostiles . | . . . Parts Fried . | . . . Impact Corruptions . | . . . Robots Melted . | . . . Combat Hostiles . | . . . Parts Melted . | . . . Heat Transferred . | . . . Parts Sabotaged . | . . . Parts Stolen . | . . . Parts Stripped . | . . . Power Chain Reactions . | . . . Missiles Intercepted . | . . . Alert | -11 -10 -9 ------- Run | Scr Mat Mat Peak Influence 235 | 5 235 235 Initial 16 | . 3 16 Average 88 | 3 67 152 Maximum Alert Level 1 | . 1 1 Low Security (%) 86 | 100 94 67 Level 1 13 | . 5 32 Level 2 . | . . . Level 3 . | . . . Level 4 . | . . . Level 5 . | . . . High Security . | . . . Max Security . | . . . Squads Dispatched 5 | . 2 3 Investigation 3 | . 1 2 Extermination . | . . . Reinforcement 2 | . 1 1 Assault . | . . . Garrison . | . . . Intercept . | . . . Searches Triggered . | . . . Construction Impeded . | . . . Haulers Reinforced . | . . . Active Scanning Responses . | . . . Cargo Convoy Interrupts . | . . . Stealth | -11 -10 -9 --------- Run | Scr Mat Mat Distress Signals 2 | . 2 . Communications Jammed . | . . . Distress Signals . | . . . Times Spotted 26 | . 13 13 Peak Tracking Total 4 | . 3 4 Tactical Retreats . | . . . Traps | -11 -10 -9 ------- Run | Scr Mat Mat Traps Triggered 2 | . 1 1 Indirectly . | . . . Trap Hack Attempts . | . . . Triggered . | . . . Disarmed . | . . . Reprogrammed . | . . . Reused . | . . . Traps Extracted . | . . . Installed . | . . . Triggered . | . . . Machines | -11 -10 -9 ---------- Run | Scr Mat Mat Machines Disabled 2 | . . 2 Max in Single Turn 1 | . . 1 Machines Sabotaged . | . . . Garrisons Compromised . | . . . Overloaded Fab Kills . | . . . Hacking | -11 -10 -9 --------- Run | Scr Mat Mat Machines Accessed 2 | . 1 1 Terminals 2 | . 1 1 Fabricators . | . . . Repair Stations . | . . . Recycling Units . | . . . Scanalyzers . | . . . Garrison Access . | . . . Total Hacks 11 | . 5 6 Successful 5 | . 3 2 Failed 6 | . 2 4 Catastrophic 1 | . . 1 Database Lockouts . | . . . Manual 7 | . 3 4 Terminals 11 | . 5 6 Fabricators . | . . . Repair Stations . | . . . Recycling Units . | . . . Scanalyzers . | . . . Garrison Access . | . . . Terminal Hacks 3 | . 2 1 Terminal Index 1 | . 1 . Alert Level 1 | . . 1 Zone Layout 1 | . 1 . Fabricator Hacks . | . . . Repair Station Hacks . | . . . Recycling Unit Hacks . | . . . Scanalyzer . | . . . Garrison Access Hacks . | . . . Unauthorized Hacks 2 | . 1 1 Terminals 2 | . 1 1 Assimilate 1 | . . 1 Botnet 1 | . 1 . Fabricators . | . . . Repair Stations . | . . . Recycling Units . | . . . Scanalyzers . | . . . Garrison Access . | . . . Data Cores Recovered . | . . . Used . | . . . Hacking Detections 1 | . . 1 Full Trace Events 1 | . . 1 Feedback Events . | . . . Feedback Blocked . | . . . Robot Schematics Acquired . | . . . Robots Built . | . . . Authchips . | . . . Time . | . . . Total Robot Build Rating . | . . . Part Schematics Acquired . | . . . Parts Built . | . . . Authchips . | . . . Time . | . . . Total Part Build Rating . | . . . Parts Repaired . | . . . Time . | . . . Parts Recycled . | . . . Recycled Matter . | . . . Retrieved Matter . | . . . Retrieved Components . | . . . Parts Scanalyzed . | . . . Part Schematics Acquired . | . . . Parts Damaged . | . . . Bothacking | -11 -10 -9 ------------ Run | Scr Mat Mat Used RIF Installer . | . . . Robots Hacked . | . . . Non-combat . | . . . Combat . | . . . Robot Hacks Applied . | . . . Relay Couplers Released . | . . . Fabnet Peak Effective % . | . . . Robots Rewired . | . . . Allies Hacked . | . . . Hacks Repelled . | . . . Allies | -11 -10 -9 -------- Run | Scr Mat Mat Total Allies . | . . . Largest Group . | . . . Highest-Rated Group . | . . . Highest-Rated Ally . | . . . Total Orders . | . . . Ally Attacks . | . . . Total Damage . | . . . Kills . | . . . Allies Corrupted . | . . . Allies Melted . | . . . Intel | -11 -10 -9 ------- Run | Scr Mat Mat Robot Analysis Total . | . . . Derelict Logs Recovered . | . . . Drone Launches . | . . . Drone Recoveries . | . . . Exploration | -11 -10 -9 ------------- Run | Scr Mat Mat Turns Passed 821 | 83 478 260 Spaces Moved 337 | 48 215 74 Core 21 | 11 . 10 Treads 316 | 37 215 64 Legs . | . . . Wheels . | . . . Hover . | . . . Flight . | . . . Fastest Speed 50 | 50 160 160 Average Speed 162 | 134 160 189 Slowest Speed 400 | 160 160 400 Overloaded Moves . | . . . Propulsion Burnouts . | . . . Robots Hopped . | . . . Cave-ins Triggered . | . . . Exploration Rate (%) 16 | 4 34 12 Regions Visited 2 Branch Regions . Pre-discovered Areas . | . . . Known Exits Taken . | . . . Unknown Exits Taken 2 | 1 1 . Scrap Searched . | . . . Spaces Dug . | . . . Terrain Destroyed 10 | . . 10 Melee . | . . . Projectile . | . . . AOE 10 | . . 10 Terrain Rammed . | . . . Walls Destroyed . | . . . Machines Disabled . | . . . Actions | -11 -10 -9 --------- Run | Scr Mat Mat Total 495 | 64 291 140 Wait 54 | . 22 32 Move 335 | 47 214 74 Hop . | . . . Pick Up 27 | 9 15 3 Fast Attach . | . . . Attach 11 | 6 3 2 Detach . | . . . Swap 3 | . 1 2 Drop 3 | . 3 . Fire 61 | 2 33 26 Melee . | . . . Ram 1 | . . 1 Kick . | . . . Crush . | . . . Escape Stasis . | . . . Rewire . | . . . Trap . | . . . Miscellaneous . | . . . Route ------- -11/Scrapyard -10/Materials -9/Materials History --------- Turn | Location | Event 9 | -11/Scrapyard | Discovered new exit (range 15) 84 | -11/Scrapyard | Entered Materials 326 | -10/Materials | Build established: Mutant 529 | -10/Materials | Discovered new exit (range 15) 562 | -10/Materials | Entered another Materials area 562 | -9/Materials | Evolved 2 slots: Propulsion x1, Utility x1 777 | -9/Materials | Lost 5 parts (1p2n1u1w) 788 | -9/Materials | Core integrity fell below 50% 815 | -9/Materials | Core integrity fell below 20% 822 | -9/Materials | Destroyed by Y-45 Defender with Beam Rifle Last Messages --------------- 00749_ K-01 Serf collects debris. 00749_ U-05 Engineer lays Concrete. 00751_ K-01 Serf collects debris. 00752_ U-05 Engineer lays Concrete. 00753_ Acquired Katana. 00755_ U-05 Engineer lays Concrete. 00760_ K-01 Serf collects debris. 00761_ U-05 Engineer lays Concrete. 00764_ K-01 Serf collects debris. 00765_ U-05 Engineer lays Concrete. 00773_ Acquired 25 matter. 00774_ U-05 Engineer lays Concrete. 00777_ Slammed into U-05 Engineer. 00781_ Hvy. Assault Rifle destroyed. 00796_ K-01 Serf collects debris. 00806_ U-05 Engineer lays Concrete. 00806_ Triggered Alarm Trap. 00806_ An alarm sounds. 00806_ ALERT: Alarm triggered, dispatching investigation squad. 00807_ U-05 Engineer lays Concrete. Map ----- +----------------------------------------------------+ | ?????????????????????????????# # #???? | | ?????????????????????????????# # ] #???? | | ?????????????????????????????# ##+#####???? | | ?????????????????????????????# ## #???????? | | ?????????????????????????????# ## #???????? | | ?????????????????????????????# ## #???????? | | ?????????????????????????????# ## #???????? | | ?????????????????????????????# ##+########? | | ?????????????????????????????# ## ] #? | | ????????????????????????????## ## #? | | ????????????????????????????# # #? | | ????????????????????????????# # #? | | ????????????????????????????# T + #? | | ????????????????????????????# # #? | | ????????????????????????????# # #? | | ????????????????????????????#### ## #? | | ???????????????????????????????# ## #? | | ??????????????????????????###### ###########? | | ??????????????????????????# #?????????? | | ??????????????????????????# #?????????? | | ??????????????????????????# #?????????? | | ???????????????????"""##### #######???? | | ??????????????????? + #???? | | ??????????????????????# u #???? | | ?????????????????#+##+# #???? | | ?????????? Y @ #???? | | ?????????? ^g% [ ####???? | | ??????????= gg """ """ #####??? | | ??????????? """""" " [ #??? | | ??????????? *" [ * # "" #??? | | ???????????? %! !# "T #??? | | ???????????? = *!*+ "" #??? | | ???????????? ##### ## # #??? | | ????????????? ? ? ????#######!# #??? | | ????????????? ????? ???????????#[########??? | | ???????????????????????????????? ?????????? | | ???????????????????????????????? ?????????? | | ???????????????????????????????? ????????? | | ???????????????????????????????? ????????? | | ??????????????????????????????? ????????? | | ???????????????????????????????######???????? | | ????????????????????????????????????????????? | | ????????????????????????????????????????????? | | ????????????????????????????????????????????? | | ????????????????????????????????????????????? | | ????????????????????????????????????????????? | | ????????????????????????????????????????????? | | ????????????????????????????????????????????? | | ????????????????????????????????????????????? | | ????????????????????????????????????????????? | +----------------------------------------------------+ Best States ------------- Heat Dissipation 28 Energy Generation 12 Energy Capacity 265 Matter Stores 300 Matter Capacity 300 Sight Range 16 Terrain Scan Density 10 Armor Coverage 150 Evasion (%) 50 Recoil Reduction 2 Item Schematics ----------------- None Robot Schematics ------------------ None Fabricated ------------ Nothing Alien Tech Used ----------------- None Achievements -------------- None Challenges ------------ None Game ------ Seed WaveHeartFacilitator Manual? 0 Play Time 00:13:17 Cumulative 32.5 hours Start 2022.05.08 @ 13:17:07 End 2022.05.08 @ 13:30:43 Sessions 1 Manual Loads 0 Difficulty Rogue Special Mode None Game No. 73 Rogue 73 Adventurer 0 Explorer 0 Win Type - Total 0 Types 0/0/0/0/0/0/0/0/0 Lore% 24 Gallery% 23 Achievement% 22 Wizard Run 0 Options --------- ASCII 0 Keyboard 0 Movement Mouse Keybinds 0 Fullscreen 1 Font 12/Smallcaps Map View 83x54 Tactical HUD 1 Map Filters NONE Filters NONE Steam 1 RUN: 785c2b2e-ff7d-4760-9090-99077350d221